fUSD/lending_fUSD_20241226
["ID","MTS","AMOUNT","RATE_DAILY","PERIOD"]
[346691069,1735191042000,-227.85506738,0.00012186,2]
[346691070,1735191042009,-432.72247137,0.00012199,2]
[346691071,1735191042018,-187.4959416,0.00012199,2]
[346691072,1735191042027,-227.85506738,0.00012199,2]
[346691073,1735191042036,-150.0,0.00012207,2]
[346691074,1735191042046,-432.72247137,0.00012212,2]
[346691075,1735191042055,-187.4959416,0.00012212,2]
[346691076,1735191042064,-227.85506738,0.00012212,2]
[346691077,1735191042074,-432.72247137,0.00012225,2]
[346691078,1735191042084,-187.4959416,0.00012225,2]
[346691079,1735191042093,-227.85506738,0.00012225,2]
[346691080,1735191042102,-432.72247137,0.00012239,2]
[346691081,1735191042112,-187.4959416,0.00012239,2]
[346691082,1735191042121,-227.85506738,0.00012239,2]
[346691083,1735191042135,-150.0,0.0001225,2]
[346691084,1735191042145,-432.72247137,0.00012252,2]
[346691085,1735191042154,-187.4959416,0.00012252,2]
[346691086,1735191042163,-227.85506738,0.00012252,2]
[346691087,1735191042172,-432.72247137,0.00012265,2]
[346691088,1735191042182,-187.4959416,0.00012265,2]
[346691089,1735191042191,-227.85506738,0.00012265,2]
[346691090,1735191042200,-200.0,0.0001227,2]
[346691091,1735191042211,-432.72247137,0.00012278,2]
[346691092,1735191042222,-187.4959416,0.00012278,2]
[346691093,1735191042231,-227.85506738,0.00012278,2]
[346691094,1735191042240,-432.72247137,0.00012291,2]
[346691095,1735191042250,-187.4959416,0.00012291,2]
[346691096,1735191042260,-227.85506738,0.00012291,2]
[346691097,1735191042269,-150.0,0.00012294,2]
[346691098,1735191042278,-915.19,0.000123,2]
[346691099,1735191042288,-770.94,0.000123,2]
[346691100,1735191042297,-262.51,0.000123,2]
[346691101,1735191042306,-441.43,0.000123,2]
[346691102,1735191042315,-436.52,0.000123,2]
[346691103,1735191042324,-1537.82,0.000123,2]
[346691104,1735191042334,-306.79,0.000123,2]
[346691105,1735191042343,-437.22,0.000123,2]
[346691106,1735191042352,-770.94,0.000123,2]
[346691107,1735191042361,-770.94,0.000123,2]
[346691108,1735191042370,-1201.1,0.000123,2]
[346691109,1735191042382,-432.72247137,0.00012304,2]
[346691110,1735191042392,-187.4959416,0.00012304,2]
[346691111,1735191042401,-227.85506738,0.00012304,2]
[346691112,1735191042411,-432.72247137,0.00012317,2]
[346691113,1735191042420,-187.4959416,0.00012317,2]
[346691114,1735191042430,-227.85506738,0.00012317,2]
[346691115,1735191042440,-432.72247137,0.0001233,2]
[346691116,1735191042449,-187.4959416,0.0001233,2]
[346691117,1735191042459,-227.85506738,0.0001233,2]
[346691118,1735191042469,-150.0,0.00012337,2]
[346691119,1735191042478,-150.0,0.00012337,2]
[346691120,1735191042487,-150.0,0.00012337,2]
[346691121,1735191042497,-150.0,0.00012337,2]
[346691122,1735191042507,-150.0,0.00012337,2]
[346691123,1735191042516,-432.72247137,0.00012344,2]
[346691124,1735191042525,-187.4959416,0.00012344,2]
[346691125,1735191042535,-227.85506738,0.00012344,2]
[346691126,1735191042545,-151.0,0.00012344,2]
[346691127,1735191042555,-151.0,0.00012344,2]
[346691128,1735191042564,-151.0,0.00012344,2]
[346691129,1735191042573,-1740.340232,0.00012344,2]
[346691130,1735191042582,-1740.340232,0.00012344,2]
[346691131,1735191042592,-61.93769662,0.00012344,2]
[346691132,1735191042604,-136.65708538,0.00012344,2]
[346691133,1735191042614,-170.94128502,0.00012344,2]
[346691135,1735191043620,-27.65349698,0.00012344,2]
[346691137,1735191043632,-151.0,0.00012344,2]
[346691139,1735191043641,-88.28913455,0.00012344,2]
[346691250,1735191046234,-62.71086545,0.00012344,2]
[346691251,1735191046253,-199.794808,0.00012344,2]
[346691252,1735191046263,-199.794808,0.00012344,2]
[346691253,1735191046272,-151.0,0.00012344,2]
[346691254,1735191046282,-340.314,0.0001235,2]
[346691255,1735191046292,-151.0,0.0001235,2]
[346691256,1735191046302,-165.790712,0.0001235,2]
[346691257,1735191046311,-165.790712,0.0001235,2]
[346691258,1735191046320,-198.568548,0.0001235,2]
[346691259,1735191046331,-198.568548,0.0001235,2]
[346691260,1735191046340,-248.657478,0.0001235,2]
[346691261,1735191046349,-159.80152055,0.0001235,2]
[346691262,1735191046415,-88.85595745,0.0001235,2]
[346691263,1735191046424,-432.72247137,0.00012357,2]
[346691264,1735191046434,-38.54658396,0.00012357,2]
[346691265,1735191046475,-148.94935764,0.00012357,2]
[346691266,1735191046485,-227.85506738,0.00012357,2]
[346691267,1735191046494,-432.72247137,0.0001237,2]
[346691268,1735191046503,-187.4959416,0.0001237,2]
[346691269,1735191046514,-227.85506738,0.0001237,2]
[346691270,1735191046523,-4251.35509102,0.00012379,2]
[346691271,1735191046532,-150.0,0.0001238,2]
[346691272,1735191046541,-432.72247137,0.00012383,2]
[346691273,1735191046550,-187.4959416,0.00012383,2]
[346691274,1735191046560,-227.85506738,0.00012383,2]
[346691275,1735191046569,-200.0,0.00012392,2]
[346691276,1735191046578,-432.72247137,0.00012396,2]
[346691277,1735191046588,-187.4959416,0.00012396,2]
[346691278,1735191046597,-227.85506738,0.00012396,2]
[346691279,1735191046606,-770.94,0.000124,2]
[346691280,1735191046615,-1776.39667624,0.000124,2]
[346691281,1735191046625,-432.72247137,0.00012409,2]
[346691282,1735191046636,-187.4959416,0.00012409,2]
[346691283,1735191046645,-227.85506738,0.00012409,2]
[346691284,1735191046654,-432.72247137,0.00012422,2]
[346691285,1735191046664,-187.4959416,0.00012422,2]
[346691286,1735191046673,-227.85506738,0.00012422,2]
[346691287,1735191046683,-150.0,0.00012424,2]
[346691288,1735191046692,-432.72247137,0.00012435,2]
[346691289,1735191046702,-187.4959416,0.00012435,2]
[346691290,1735191046929,-227.85506738,0.00012435,2]
[346691291,1735191046951,-151.0,0.00012448,2]
[346691292,1735191046961,-432.72247137,0.00012448,2]
[346691293,1735191046970,-187.4959416,0.00012448,2]
[346691294,1735191046980,-227.85506738,0.00012448,2]
[346691295,1735191046990,-1776.39667623,0.00012456,2]
[346691296,1735191046999,-432.72247137,0.00012462,2]
[346691297,1735191047010,-187.4959416,0.00012462,2]
[346691298,1735191047021,-227.85506738,0.00012462,2]
[346691299,1735191047032,-10540.0,0.00012463,7]
[346691300,1735191047041,-151.0,0.00012463,2]
[346691301,1735191047050,-150.0,0.00012467,2]
[346691302,1735191047059,-151.0,0.00012467,2]
[346691303,1735191047069,-165.790712,0.00012467,2]
[346691304,1735191047079,-165.790712,0.00012467,2]
[346691305,1735191047089,-151.0,0.00012467,2]
[346691306,1735191047099,-198.568548,0.00012467,2]
[346691307,1735191047109,-198.568548,0.00012467,2]
[346691308,1735191047119,-199.558812,0.00012467,2]
[346691309,1735191047129,-248.657478,0.00012467,2]
[346691310,1735191047138,-151.0,0.00012467,2]
[346691311,1735191047149,-248.657478,0.00012467,2]
[346691312,1735191047158,-1740.340232,0.00012467,2]
[346691313,1735191047169,-1740.340232,0.00012467,2]
[346691314,1735191047179,-198.594782,0.00012467,2]
[346691315,1735191047189,-198.594782,0.00012467,2]
[346691316,1735191047199,-151.0,0.00012467,2]
[346691317,1735191047210,-151.0,0.00012467,2]
[346691318,1735191047219,-199.794808,0.00012467,2]
[346691319,1735191047228,-199.794808,0.00012467,2]
[346691320,1735191047237,-169.19,0.00012474,2]
[346691321,1735191047247,-432.72247137,0.00012475,2]
[346691322,1735191047256,-187.4959416,0.00012475,2]
[346691323,1735191047265,-227.85506738,0.00012475,2]
[346691324,1735191047275,-200.0,0.00012478,2]
[346691325,1735191047284,-432.72247137,0.00012488,2]
[346691326,1735191047294,-187.4959416,0.00012488,2]
[346691327,1735191047303,-227.85506738,0.00012488,2]
[346691328,1735191047312,-432.72247137,0.00012501,2]
[346691329,1735191047322,-187.4959416,0.00012501,2]
[346691330,1735191047332,-227.85506738,0.00012501,2]
[346691331,1735191047341,-150.0,0.0001251,2]
[346691332,1735191047352,-1776.39667623,0.00012511,2]
[346691333,1735191047362,-432.72247137,0.00012514,2]
[346691334,1735191047371,-187.4959416,0.00012514,2]
[346691335,1735191047382,-227.85506738,0.00012514,2]
[346691336,1735191047391,-200.0,0.00012516,2]
[346691337,1735191047401,-432.72247137,0.00012527,2]
[346691338,1735191047410,-187.4959416,0.00012527,2]
[346691339,1735191047419,-227.85506738,0.00012527,2]
[346691340,1735191047428,-301.573384,0.0001254,2]
[346691341,1735191047438,-217.773524,0.0001254,2]
[346691342,1735191047447,-217.773524,0.0001254,2]
[346691343,1735191047456,-651.089803,0.0001254,2]
[346691344,1735191047466,-651.089803,0.0001254,2]
[346691345,1735191047475,-151.0,0.0001254,2]
[346691346,1735191047485,-10000.0,0.0001254,2]
[346691347,1735191047494,-10000.0,0.0001254,2]
[346691348,1735191047503,-1129.752781,0.0001254,2]
[346691349,1735191047512,-10000.0,0.0001254,2]
[346691350,1735191047521,-1129.752781,0.0001254,2]
[346691351,1735191047531,-151.0,0.0001254,2]
[346691352,1735191047540,-197.711553,0.0001254,2]
[346691353,1735191047550,-198.594782,0.0001254,2]
[346691354,1735191047559,-198.594782,0.0001254,2]
[346691355,1735191047569,-262.550694,0.0001254,2]
[346691356,1735191047578,-151.0,0.0001254,2]
[346691357,1735191047587,-199.794808,0.0001254,2]
[346691358,1735191047596,-199.794808,0.0001254,2]
[346691359,1735191047605,-151.0,0.0001254,2]
[346691360,1735191047615,-432.72247137,0.0001254,2]
[346691361,1735191047624,-187.4959416,0.0001254,2]
[346691362,1735191047634,-227.85506738,0.0001254,2]
[346691363,1735191047643,-432.72247137,0.00012553,2]
[346691364,1735191047653,-187.4959416,0.00012553,2]
[346691365,1735191047662,-227.85506738,0.00012553,2]
[346691366,1735191047671,-150.0,0.00012553,2]
[346691367,1735191047681,-150.0,0.00012553,2]
[346691368,1735191047690,-150.0,0.00012553,2]
[346691369,1735191047699,-298.984023,0.00012563,2]
[346691370,1735191047712,-298.984023,0.00012563,2]
[346691371,1735191047721,-151.0,0.00012563,2]
[346691372,1735191047730,-432.72247137,0.00012567,2]
[346691373,1735191047740,-187.4959416,0.00012567,2]
[346691374,1735191047750,-227.85506738,0.00012567,2]
[346691375,1735191047759,-1776.39667623,0.00012567,2]
[346691376,1735191047770,-151.0,0.00012567,2]
[346691377,1735191047780,-151.0,0.00012567,2]
[346691378,1735191047791,-432.72247137,0.0001258,2]
[346691379,1735191047802,-187.4959416,0.0001258,2]
[346691380,1735191047812,-227.85506738,0.0001258,2]
[346691381,1735191047823,-153.6135474,0.00012585,2]
[346691382,1735191047832,-432.72247137,0.00012593,2]
[346691383,1735191047841,-187.4959416,0.00012593,2]
[346691384,1735191047851,-227.85506738,0.00012593,2]
[346691385,1735191047860,-150.0,0.00012597,2]
[346691386,1735191047870,-155.391422,0.000126,2]
[346691387,1735191047879,-151.0,0.000126,2]
[346691388,1735191047891,-151.0,0.000126,2]
[346691389,1735191047901,-151.0,0.000126,2]
[346691390,1735191047910,-202.787913,0.000126,2]
[346691391,1735191047920,-202.787913,0.000126,2]
[346691392,1735191047929,-202.787913,0.000126,2]
[346691393,1735191047940,-202.787913,0.000126,2]
[346691394,1735191047950,-535.66404,0.000126,2]
[346691395,1735191047960,-535.66404,0.000126,2]
[346691396,1735191047970,-535.66404,0.000126,2]
[346691397,1735191047980,-535.66404,0.000126,2]
[346691398,1735191047989,-151.0,0.000126,2]
[346691399,1735191047999,-151.0,0.000126,2]
[346691400,1735191048010,-151.0,0.000126,2]
[346691401,1735191048019,-151.0,0.000126,2]
[346691402,1735191048028,-215.928487,0.000126,2]
[346691403,1735191048037,-215.928487,0.000126,2]
[346691404,1735191048046,-186.096769,0.000126,2]
[346691405,1735191048055,-186.096769,0.000126,2]
[346691406,1735191048065,-151.0,0.000126,2]
[346691407,1735191048075,-186.096769,0.000126,2]
[346691408,1735191048085,-186.096769,0.000126,2]
[346691409,1735191048094,-2456.567676,0.000126,2]
[346691410,1735191048104,-2456.567676,0.000126,2]
[346691411,1735191048113,-155.055099,0.000126,2]
[346691412,1735191048122,-226.850775,0.000126,2]
[346691413,1735191048132,-151.0,0.000126,2]
[346691414,1735191048142,-151.0,0.000126,2]
[346691415,1735191048151,-191.899866,0.000126,2]
[346691416,1735191048160,-191.899866,0.000126,2]
[346691417,1735191048169,-151.0,0.000126,2]
[346691418,1735191048178,-191.899866,0.000126,2]
[346691419,1735191048188,-191.899866,0.000126,2]
[346691420,1735191048197,-151.0,0.000126,2]
[346691421,1735191048207,-151.0,0.000126,2]
[346691422,1735191048216,-151.0,0.000126,2]
[346691423,1735191048225,-151.0,0.000126,2]
[346691424,1735191048234,-151.0,0.000126,2]
[346691425,1735191048244,-283.473332,0.000126,2]
[346691426,1735191048253,-151.0,0.000126,2]
[346691427,1735191048262,-283.473332,0.000126,2]
[346691428,1735191048272,-809.6493,0.000126,2]
[346691429,1735191048281,-217.773524,0.000126,2]
[346691430,1735191048290,-217.773524,0.000126,2]
[346691431,1735191048299,-651.089803,0.000126,2]
[346691432,1735191048309,-651.089803,0.000126,2]
[346691433,1735191048318,-178.59788357,0.000126,2]
[346691434,1735191048327,-151.0,0.000126,2]
[346691435,1735191048337,-151.0,0.000126,2]
[346691436,1735191048346,-10000.0,0.000126,2]
[346691437,1735191048356,-165.790712,0.000126,2]
[346691438,1735191048365,-1124.24861178,0.000126,2]
[346691439,1735191256646,4220.78519646,0.00021,120]
[346691458,1735192232405,-327.22,9.685e-05,2]
[346691459,1735192232427,-172.32,0.00010137,2]
[346691460,1735192232441,-100.46,0.00010982,2]
[346691461,1735192232460,-160.94,0.00010982,2]
[346691462,1735192232482,-188.93,0.00011035,2]
[346691463,1735192232497,-169.07,0.00011496,2]
[346691464,1735192232516,-8.40858505,0.00011496,2]
[346691465,1735192232532,-367.43140595,0.00011531,2]
[346691466,1735192232586,-11470.7988107,0.00011531,2]
[346691467,1735192232601,-12517.47,0.00011589,2]
[346691468,1735192232616,-250.0,0.00011596,2]
[346691469,1735192232632,-1000.0,0.00011612,2]
[346691470,1735192232648,-528.28,0.00011652,2]
[346691471,1735192232663,-250.0,0.00011669,2]
[346691472,1735192232679,-150.0,0.00011688,2]
[346691473,1735192232695,-150.0,0.00011688,2]
[346691474,1735192232710,-266.7716619,0.00011688,2]
[346691475,1735192232725,-171.71275813,0.00011688,2]
[346691476,1735192232741,-150.0,0.00011688,2]
[346691477,1735192232756,-219.19536342,0.00011688,2]
[346691478,1735192232771,-150.0,0.00011688,2]
[346691479,1735192232786,-150.0,0.00011688,2]
[346691480,1735192232801,-261.93400207,0.00011688,2]
[346691481,1735192232816,-150.0,0.00011688,2]
[346691482,1735192232830,-2813.8937239,0.00011695,2]
[346691483,1735192232845,-150.0,0.00011702,2]
[346691484,1735192232860,-150.0,0.00011716,2]
[346691485,1735192232875,-150.0,0.00011717,2]
[346691486,1735192232890,-150.0,0.00011723,2]
[346691487,1735192232905,-150.0,0.00011732,2]
[346691488,1735192232919,-150.0,0.00011744,2]
[346691489,1735192232933,-150.0,0.00011747,2]
[346691490,1735192232947,-150.0,0.00011758,2]
[346691491,1735192232961,-150.0,0.00011761,2]
[346691493,1735192232975,-150.0,0.00011772,2]
[346691496,1735192232989,-150.0,0.00011776,2]
[346691498,1735192233004,-150.0,0.00011791,2]
[346691501,1735192233018,-150.0,0.00011793,2]
[346691503,1735192233032,-150.0,0.00011801,2]
[346691506,1735192233048,-150.0,0.00011806,2]
[346691509,1735192233063,-1869.85708151,0.00011817,2]
[346691511,1735192233078,-150.0,0.0001182,2]
[346691514,1735192233093,-150.0,0.00011828,2]
[346691516,1735192233109,-150.0,0.00011829,2]
[346691519,1735192233125,-150.0,0.00011832,2]
[346691522,1735192233140,-150.0,0.00011835,2]
[346691524,1735192233155,-150.0,0.0001185,2]
[346691527,1735192233171,-150.0,0.00011857,2]
[346691530,1735192233186,-150.0,0.00011863,2]
[346691532,1735192233201,-150.0,0.00011865,2]
[346691535,1735192233216,-150.0,0.0001188,2]
[346691538,1735192233231,-150.0,0.00011885,2]
[346691540,1735192233245,-150.0,0.00011894,2]
[346691543,1735192233261,-150.0,0.00011898,2]
[346691545,1735192233276,-150.0,0.00011909,2]
[346691548,1735192233291,-150.0,0.00011914,2]
[346691550,1735192233307,-150.0,0.00011924,2]
[346691553,1735192233322,-150.0,0.00011933,2]
[346691556,1735192233337,-150.0,0.00011939,2]
[346691558,1735192233352,-150.0,0.00011942,2]
[346691561,1735192233367,-327.22,0.00011949,2]
[346691563,1735192233384,-150.0,0.00011953,2]
[346691566,1735192233399,-150.0,0.00011968,2]
[346691568,1735192233414,-150.0,0.00011968,2]
[346691571,1735192233429,-150.0,0.0001197,2]
[346691574,1735192233444,-150.0,0.00011976,2]
[346691576,1735192233460,-327.87,0.00011978,2]
[346691579,1735192233476,-150.0,0.00011983,2]
[346691582,1735192233492,-177.47858504,0.00011991,2]
[346691584,1735192233507,-150.0,0.00011998,2]
[346691587,1735192233524,-150.0,0.00011998,2]
[346691590,1735192233540,-150.0,0.00012004,2]
[346691592,1735192233554,-150.0,0.00012012,2]
[346691594,1735192233564,-150.0,0.00012026,2]
[346691596,1735192233573,-150.0,0.00012027,2]
[346691598,1735192233583,-150.0,0.00012039,2]
[346691600,1735192233593,-150.0,0.00012042,2]
[346691624,1735192233858,-150.0,0.00012055,2]
[346691625,1735192233881,-150.0,0.00012057,2]
[346691626,1735192233912,-150.0,0.00012071,2]
[346691627,1735192233922,-150.0,0.00012074,2]
[346691628,1735192233932,-150.0,0.00012078,2]
[346691629,1735192233942,-150.0,0.00012083,2]
[346691630,1735192233951,-150.0,0.00012086,2]
[346691631,1735192233961,-300.54,0.000121,2]
[346691632,1735192233971,-300.42,0.000121,2]
[346691633,1735192233981,-429.83,0.000121,2]
[346691634,1735192233990,-160.69,0.000121,2]
[346691635,1735192234000,-306.61,0.000121,2]
[346691636,1735192234009,-382.7,0.000121,2]
[346691637,1735192234019,-150.0,0.00012101,2]
[346691638,1735192234029,-150.0,0.00012109,2]
[346691639,1735192234039,-150.0,0.00012111,2]
[346691640,1735192234048,-150.0,0.00012116,2]
[346691641,1735192234058,-150.0,0.00012121,2]
[346691642,1735192234068,-150.0,0.0001213,2]
[346691643,1735192234077,-150.0,0.00012139,2]
[346691644,1735192234087,-150.0,0.00012144,2]
[346691645,1735192234096,-150.0,0.00012145,2]
[346691646,1735192234106,-150.0,0.0001216,2]
[346691647,1735192234115,-150.0,0.00012168,2]
[346691648,1735192234125,-150.0,0.00012175,2]
[346691649,1735192234135,-150.0,0.00012179,2]
[346691650,1735192234145,-634.0,0.00012185,2]
[346691651,1735192234155,-150.0,0.00012189,2]
[346691652,1735192234164,-150.0,0.00012196,2]
[346691653,1735192234174,-972.80512641,0.00012204,2]
[346691654,1735192234183,-150.0,0.00012204,2]
[346691655,1735192234193,-150.0,0.00012214,2]
[346691656,1735192234202,-150.0,0.00012219,2]
[346691657,1735192234212,-150.0,0.00012224,2]
[346691658,1735192234222,-150.0,0.00012234,2]
[346691659,1735192234231,-150.0,0.00012248,2]
[346691660,1735192234240,-150.0,0.00012249,2]
[346691661,1735192234251,-150.0,0.00012252,2]
[346691662,1735192234261,-150.0,0.00012263,2]
[346691663,1735192234270,-150.0,0.00012265,2]
[346691664,1735192234280,-150.0,0.00012278,2]
[346691665,1735192234289,-150.0,0.00012281,2]
[346691666,1735192234299,-150.0,0.00012284,2]
[346691667,1735192234308,-150.0,0.00012293,2]
[346691668,1735192234318,-150.0,0.00012307,2]
[346691669,1735192234328,-150.0,0.00012309,2]
[346691670,1735192234338,-150.0,0.00012319,2]
[346691671,1735192234348,-150.0,0.00012322,2]
[346691672,1735192234359,-150.0,0.00012337,2]
[346691673,1735192234369,-150.0,0.00012337,2]
[346691674,1735192234381,-150.0,0.00012337,2]
[346691675,1735192234390,-151.0,0.00012344,2]
[346691676,1735192234400,-339.907,0.0001235,2]
[346691677,1735192234410,-150.0,0.00012352,2]
[346691678,1735192234420,-261.4,0.00012354,2]
[346691679,1735192234430,-150.0,0.00012355,2]
[346691680,1735192234439,-150.0,0.00012365,2]
[346691681,1735192234449,-150.0,0.00012367,2]
[346691682,1735192234460,-150.0,0.00012381,2]
[346691683,1735192234470,-150.0,0.0001239,2]
[346691684,1735192234481,-150.0,0.00012393,2]
[346691685,1735192234490,-150.0,0.00012396,2]
[346691686,1735192234500,-150.0,0.00012409,2]
[346691687,1735192234510,-150.0,0.00012411,2]
[346691688,1735192234520,-150.0,0.00012422,2]
[346691689,1735192234529,-150.0,0.00012425,2]
[346691690,1735192234539,-150.0,0.00012426,2]
[346691691,1735192234549,-150.0,0.0001244,2]
[346691692,1735192234558,-150.0,0.0001245,2]
[346691693,1735192234568,-150.0,0.00012455,2]
[346691694,1735192234578,-150.0,0.0001246,2]
[346691695,1735192234588,-151.0,0.00012463,2]
[346691696,1735192234598,-150.0,0.0001247,2]
[346691697,1735192234607,-150.0,0.00012478,2]
[346691698,1735192234616,-150.0,0.00012485,2]
[346691699,1735192234626,-177.47858504,0.00012485,2]
[346691700,1735192234635,-2103.78017893,0.00012485,2]
[346691701,1735192234645,-150.0,0.00012495,2]
[346691702,1735192234654,-150.0,0.00012499,2]
[346691703,1735192234663,-150.0,0.00012506,2]
[346691704,1735192234673,-150.0,0.00012514,2]
[346691705,1735192234683,-150.0,0.00012529,2]
[346691706,1735192234693,-150.0,0.0001253,2]
[346691707,1735192234703,-2103.78017893,0.00012531,2]
[346691708,1735192234712,-150.0,0.00012535,2]
[346691709,1735192234722,-153.389644,0.0001254,2]
[346691710,1735192234732,-150.0,0.00012544,2]
[346691711,1735192234742,-150.0,0.00012553,2]
[346691712,1735192234751,-150.0,0.00012558,2]
[346691713,1735192234761,-150.0,0.00012563,2]
[346691714,1735192234771,-150.0,0.00012565,2]
[346691715,1735192234780,-150.0,0.00012573,2]
[346691716,1735192234789,-2103.78017893,0.00012577,2]
[346691717,1735192234799,-778.2019,0.00012584,2]
[346691718,1735192234809,-20317.3825,0.00012584,2]
[346691719,1735192234819,-1000.0,0.00012585,2]
[346691720,1735192234828,-779.48075283,0.00012585,2]
[346691721,1735192234838,-150.0,0.00012588,2]
[346691722,1735192234847,-150.0,0.00012591,2]
[346691723,1735192234857,-151.0,0.000126,2]
[346691724,1735192234866,-151.0,0.000126,2]
[346691725,1735192234876,-151.0,0.000126,2]
[346691726,1735192234885,-3000.0,0.000126,2]
[346691727,1735192234895,-150.0,0.000126,2]
[346691728,1735192234904,-150.0,0.00012603,2]
[346691729,1735192234914,-150.0,0.00012617,2]
[346691730,1735192234923,-150.0,0.00012619,2]
[346691731,1735192234932,-779.48075277,0.0001262,2]
[346691732,1735192234942,-2103.78017893,0.00012623,2]
[346691733,1735192234951,-150.0,0.00012632,2]
[346691734,1735192234961,-150.0,0.00012635,2]
[346691735,1735192234971,-150.0,0.00012647,2]
[346691736,1735192234981,-150.0,0.00012648,2]
[346691737,1735192234991,-779.48075277,0.00012655,2]
[346691738,1735192235000,-150.0,0.00012662,2]
[346691739,1735192235009,-2103.78017893,0.00012669,2]
[346691740,1735192235020,-150.0,0.0001267,2]
[346691741,1735192235033,-187.90139774,0.00012675,2]
[346691742,1735192235042,-150.0,0.00012676,2]
[346691743,1735192235052,-150.0,0.00012676,2]
[346691744,1735192235061,-157.628203,0.00012683,2]
[346691745,1735192235070,-151.645239,0.00012683,2]
[346691746,1735192235080,-151.0,0.00012683,2]
[346691747,1735192235090,-151.0,0.00012683,2]
[346691748,1735192235100,-483.159572,0.00012683,2]
[346691749,1735192235109,-151.0,0.00012683,2]
[346691750,1735192235119,-483.159572,0.00012683,2]
[346691751,1735192235129,-215.492491,0.00012683,2]
[346691752,1735192235139,-360.615292,0.00012683,2]
[346691753,1735192235148,-223.64628,0.00012683,2]
[346691754,1735192235157,-360.615292,0.00012683,2]
[346691755,1735192235168,-223.64628,0.00012683,2]
[346691756,1735192235177,-269.085621,0.00012683,2]
[346691757,1735192235187,-269.085621,0.00012683,2]
[346691758,1735192235197,-151.0,0.00012683,2]
[346691759,1735192235208,-151.0,0.00012683,2]
[346691760,1735192235219,-151.0,0.00012683,2]
[346691761,1735192235228,-151.0,0.00012683,2]
[346691762,1735192235238,-154.638066,0.00012683,2]
[346691763,1735192235247,-151.0,0.00012683,2]
[346691764,1735192235256,-151.0,0.00012683,2]
[346691765,1735192235265,-229.733338,0.00012683,2]
[346691766,1735192235275,-520.871842,0.00012683,2]
[346691767,1735192235284,-520.871842,0.00012683,2]
[346691768,1735192235294,-151.0,0.00012683,2]
[346691769,1735192235303,-151.0,0.00012683,2]
[346691770,1735192235312,-269.34378076,0.00012683,2]
[346691771,1735192235321,-77131.33786717,0.00012683,2]
[346691772,1735192235335,-805.95264223,0.00012683,2]
[346691773,1735192235386,-7155.97072644,0.00012683,2]
[346691774,1735192235399,-613.77,0.00012683,2]
[346691775,1735192235538,-1155.99340698,0.00012683,2]
[346691776,1735192235553,-271.5,0.00012683,2]
[346691780,1735192238234,-71721.67255541,0.00012683,2]
[346691781,1735192238244,-151.0,0.00012684,2]
[346691782,1735192238254,-154.333685,0.00012684,2]
[346691783,1735192238263,-151.0,0.00012684,2]
[346691784,1735192238273,-151.0,0.00012684,2]
[346691785,1735192238282,-151.0,0.00012684,2]
[346691786,1735192238292,-151.0,0.00012684,2]
[346691787,1735192238301,-151.0,0.00012684,2]
[346691788,1735192238311,-483.159572,0.00012684,2]
[346691789,1735192238320,-151.0,0.00012684,2]
[346691790,1735192238330,-483.159572,0.00012684,2]
[346691791,1735192238339,-360.615292,0.00012684,2]